[Event "Deloitte NK 2021"]
[Site "Hoogeveen, Netherlands"]
[Date "2021.10.16"]
[Round "2.1"]
[White "Hilwerda, Jonas"]
[Black "Lai, Hing Ting"]
[Result "1/2-1/2"]
[TimeControl "90min/40moves + 30min + 30sec/move"]
[WhiteElo "2240"]
[BlackElo "2439"]

1. e4 {[%clk 01:30:54]} {[%emt 00:00:04]} c6 {[%clk 01:30:53]} {[%emt
00:00:08]} 2. d4 {[%clk 01:31:20]} {[%emt 00:00:04]} d5 {[%clk 01:31:18]}
{[%emt 00:00:06]} 3. Nd2 {[%clk 01:31:44]} {[%emt 00:00:05]} dxe4 {[%clk
01:31:43]} {[%emt 00:00:05]} 4. Nxe4 {[%clk 01:32:09]} {[%emt 00:00:05]} Bf5
{[%clk 01:32:01]} {[%emt 00:00:12]} 5. Ng3 {[%clk 01:32:34]} {[%emt 00:00:05]}
Bg6 {[%clk 01:32:26]} {[%emt 00:00:05]} 6. h4 {[%clk 01:33:00]} {[%emt
00:00:03]} h6 {[%clk 01:32:50]} {[%emt 00:00:06]} 7. Nf3 {[%clk 01:33:27]}
{[%emt 00:00:04]} Nd7 {[%clk 01:33:10]} {[%emt 00:00:10]} 8. h5 {[%clk
01:33:49]} {[%emt 00:00:07]} Bh7 {[%clk 01:33:36]} {[%emt 00:00:04]} 9. Bd3
{[%clk 01:34:13]} {[%emt 00:00:06]} Bxd3 {[%clk 01:34:01]} {[%emt 00:00:05]} 10.
Qxd3 {[%clk 01:34:39]} {[%emt 00:00:04]} e6 {[%clk 01:33:59]} {[%emt 00:00:33]}
11. Bd2 {[%clk 01:35:04]} {[%emt 00:00:04]} Ngf6 {[%clk 01:34:17]} {[%emt
00:00:12]} 12. O-O-O {[%clk 01:35:27]} {[%emt 00:00:07]} Be7 {[%clk 01:34:30]}
{[%emt 00:00:18]} 13. Ne4 {[%clk 01:35:52]} {[%emt 00:00:05]} Nxe4 {[%clk
01:34:42]} {[%emt 00:00:18]} 14. Qxe4 {[%clk 01:36:17]} {[%emt 00:00:05]} Nf6
{[%clk 01:35:03]} {[%emt 00:00:09]} 15. Qd3 {[%clk 01:36:41]} {[%emt 00:00:05]}
O-O {[%clk 01:33:21]} {[%emt 00:02:13]} 16. g4 {[%clk 01:37:07]} {[%emt
00:00:04]} Nxg4 {[%clk 01:27:19]} {[%emt 00:06:32]} 17. Rhg1 {[%clk 01:37:28]}
{[%emt 00:00:08]} f5 {[%clk 01:27:31]} {[%emt 00:00:20]} 18. Qe2 {[%clk
01:37:52]} {[%emt 00:00:05]} Kh7 {[%clk 01:21:50]} {[%emt 00:06:10]} 19. Ne5
{[%clk 01:36:54]} {[%emt 00:01:29]} Nxe5 {[%clk 01:17:55]} {[%emt 00:04:25]} 20.
dxe5 {[%clk 01:37:03]} {[%emt 00:00:20]} Rf7 {[%clk 01:16:00]} {[%emt
00:02:26]} 21. Rg6 {[%emt 00:14:28]} Qd5 {[%clk 01:05:48]} 22. c4 {[%clk
01:34:11]} {[%emt 00:00:05]} Qe4 {[%clk 01:05:49]} {[%emt 00:00:29]} 23. Qxe4
{[%clk 01:34:36]} {[%emt 00:00:06]} fxe4 {[%clk 01:06:16]} {[%emt 00:00:04]} 24.
Rxe6 {[%clk 01:34:51]} {[%emt 00:00:13]} Bh4 {[%clk 01:03:41]} {[%emt
00:03:06]} 25. Re1 {[%clk 01:18:08]} {[%emt 00:17:12]} Bxf2 {[%clk 01:01:17]}
{[%emt 00:02:55]} 26. Rxe4 {[%clk 01:18:22]} {[%emt 00:00:16]} Bc5 {[%clk
01:00:15]} {[%emt 00:01:33]} 27. Rg6 {[%clk 00:31:34]} {[%emt 00:47:17]} Rf5
{[%clk 00:48:42]} {[%emt 00:12:03]} 28. Reg4 {[%clk 00:29:06]} {[%emt
00:02:57]} Bf8 {[%clk 00:48:12]} {[%emt 00:01:01]} 29. e6 {[%clk 00:23:14]}
{[%emt 00:06:22]} Re8 {[%clk 00:47:45]} {[%emt 00:00:57]} 30. Bf4 {[%clk
00:09:29]} {[%emt 00:14:14]} b5 {[%clk 00:33:23]} {[%emt 00:14:53]} 31. Bg3
{[%clk 00:05:58]} {[%emt 00:04:01]} bxc4 {[%clk 00:32:24]} {[%emt 00:01:30]} 32.
Bh4 {[%clk 00:05:17]} {[%emt 00:01:11]} Rxh5 {[%clk 00:29:04]} {[%emt
00:03:50]} 33. e7 {[%clk 00:05:42]} {[%emt 00:00:05]} Rxh4 {[%clk 00:28:57]}
{[%emt 00:00:37]} 34. exf8=N+ {[%clk 00:05:45]} {[%emt 00:00:27]} Rxf8 {[%clk
00:29:18]} {[%emt 00:00:08]} 35. Rxg7+ {[%clk 00:06:10]} {[%emt 00:00:05]} Kh8
{[%clk 00:29:45]} {[%emt 00:00:04]} 36. Rxh4 {[%clk 00:03:26]} {[%emt
00:03:14]} Kxg7 {[%clk 00:30:01]} {[%emt 00:00:13]} 37. Rxc4 {[%clk 00:03:28]}
{[%emt 00:00:29]} Rf6 {[%clk 00:29:35]} {[%emt 00:00:57]} 38. Rg4+ {[%clk
00:03:32]} {[%emt 00:00:25]} Kf8 {[%clk 00:29:11]} {[%emt 00:00:53]} 39. Ra4
{[%clk 00:03:26]} {[%emt 00:00:37]} Rf7 {[%clk 00:29:17]} {[%emt 00:00:25]} 40.
Rc4 {[%clk 00:03:27]} {[%emt 00:00:29]} 1/2-1/2

[Event "Deloitte NK 2021"]
[Site "Hoogeveen, Netherlands"]
[Date "2021.10.16"]
[Round "2.2"]
[White "Zwirs, Nico"]
[Black "Hoogendoorn, Joost"]
[Result "1-0"]
[TimeControl "90min/40moves + 30min + 30sec/move"]
[WhiteElo "2439"]
[BlackElo "2482"]

1. e4 {[%clk 01:30:59]} d5 {[%clk 01:25:37]} {[%emt 00:05:23]} 2. exd5 {[%clk
01:31:12]} {[%emt 00:00:17]} Qxd5 {[%clk 01:25:40]} {[%emt 00:00:27]} 3. Nc3
{[%clk 01:31:22]} {[%emt 00:00:19]} Qa5 {[%clk 01:26:02]} {[%emt 00:00:09]} 4.
d4 {[%clk 01:31:25]} {[%emt 00:00:27]} c6 {[%clk 01:26:10]} {[%emt 00:00:22]} 5.
Nf3 {[%clk 01:30:48]} {[%emt 00:01:07]} Bf5 {[%clk 01:24:28]} {[%emt 00:02:12]}
6. Ne5 {[%clk 01:27:38]} {[%emt 00:03:40]} Nd7 {[%clk 01:13:40]} {[%emt
00:11:19]} 7. Nc4 {[%clk 01:25:17]} {[%emt 00:02:50]} Qc7 {[%clk 01:11:34]}
{[%emt 00:02:36]} 8. Qf3 {[%clk 01:24:21]} {[%emt 00:01:25]} e6 {[%clk
01:03:30]} {[%emt 00:08:35]} 9. Bf4 {[%clk 01:23:20]} {[%emt 00:01:31]} Qd8
{[%clk 01:03:46]} {[%emt 00:00:15]} 10. O-O-O {[%clk 01:19:46]} {[%emt
00:04:03]} Ngf6 {[%clk 01:02:43]} {[%emt 00:01:33]} 11. h3 {[%clk 01:16:50]}
{[%emt 00:03:26]} Nb6 {[%clk 01:00:26]} {[%emt 00:02:47]} 12. g4 {[%clk
00:53:13]} {[%emt 00:24:07]} Bg6 {[%clk 00:58:04]} {[%emt 00:02:52]} 13. Ne5
{[%clk 00:52:43]} {[%emt 00:00:59]} Nbd5 {[%clk 00:54:52]} {[%emt 00:03:44]} 14.
Nxd5 {[%clk 00:36:48]} {[%emt 00:16:25]} Nxd5 {[%clk 00:37:30]} {[%emt
00:17:52]} 15. Bd2 {[%clk 00:31:50]} {[%emt 00:05:28]} Be7 {[%clk 00:32:34]}
{[%emt 00:05:26]} 16. h4 {[%clk 00:23:43]} {[%emt 00:08:36]} Bxh4 {[%clk
00:26:01]} {[%emt 00:07:03]} 17. Qb3 {[%clk 00:11:45]} {[%emt 00:12:28]} Bxf2
{[%clk 00:21:20]} {[%emt 00:05:12]} 18. Bd3 {[%clk 00:04:31]} {[%emt 00:07:44]}
Qb6 {[%clk 00:05:10]} {[%emt 00:16:39]} 19. Bxg6 {[%clk 00:04:26]} {[%emt
00:00:35]} fxg6 {[%clk 00:04:17]} {[%emt 00:01:24]} 20. Qf3 {[%clk 00:03:17]}
{[%emt 00:01:38]} Rf8 {[%clk 00:04:19]} {[%emt 00:00:29]} 21. Qxf8+ {[%clk
00:03:40]} {[%emt 00:00:07]} Kxf8 {[%clk 00:04:44]} {[%emt 00:00:04]} 22. Nd7+
{[%clk 00:04:09]} {[%emt 00:00:02]} Kg8 {[%clk 00:04:59]} {[%emt 00:00:15]} 23.
Nxb6 {[%clk 00:04:37]} {[%emt 00:00:02]} axb6 {[%clk 00:05:22]} {[%emt
00:00:07]} 24. c3 {[%clk 00:04:46]} {[%emt 00:00:20]} Rxa2 {[%clk 00:05:20]}
{[%emt 00:00:32]} 25. Rh3 {[%clk 00:02:57]} {[%emt 00:02:19]} c5 {[%clk
00:02:54]} {[%emt 00:02:57]} 26. Kb1 {[%clk 00:02:13]} {[%emt 00:01:14]} Ra8
{[%clk 00:02:56]} {[%emt 00:00:27]} 27. Rf3 {[%clk 00:00:55]} {[%emt 00:01:48]}
Bh4 {[%clk 00:02:58]} {[%emt 00:00:29]} 28. g5 {[%clk 00:00:57]} {[%emt
00:00:28]} h6 {[%clk 00:01:07]} {[%emt 00:02:21]} 29. gxh6 {[%clk 00:00:48]}
{[%emt 00:00:39]} Bf6 {[%clk 00:01:29]} {[%emt 00:00:08]} 30. dxc5 {[%clk
00:01:07]} {[%emt 00:00:11]} bxc5 {[%clk 00:01:57]} {[%emt 00:00:02]} 31. hxg7
{[%clk 00:01:24]} {[%emt 00:00:13]} Bxg7 {[%clk 00:02:01]} {[%emt 00:00:26]} 32.
Rg1 {[%clk 00:01:13]} {[%emt 00:00:41]} Ne7 {[%emt 00:00:55]} 33. Rd3 {[%clk
00:01:09]} b5 {[%clk 00:01:54]} {[%emt 00:00:46]} 34. Rd7 {[%clk 00:01:05]}
{[%emt 00:00:33]} Re8 {[%clk 00:02:22]} {[%emt 00:00:02]} 35. Be3 {[%clk
00:01:15]} {[%emt 00:00:20]} c4 {[%clk 00:02:09]} {[%emt 00:00:44]} 36. Bc5
{[%clk 00:01:20]} {[%emt 00:00:24]} Bf6 {[%clk 00:01:33]} {[%emt 00:01:07]} 37.
Bxe7 {[%clk 00:01:17]} {[%emt 00:00:32]} Rxe7 {[%clk 00:01:59]} {[%emt
00:00:04]} 38. Rxe7 {[%clk 00:01:38]} {[%emt 00:00:10]} Bxe7 {[%clk 00:02:27]}
{[%emt 00:00:01]} 39. Rxg6+ {[%clk 00:02:01]} {[%emt 00:00:07]} Kf7 {[%clk
00:02:49]} {[%emt 00:00:09]} 40. Rh6 {[%clk 00:02:15]} {[%emt 00:00:14]} Bf6
{[%clk 00:02:03]} {[%emt 00:01:18]} 41. Rh7+ {[%clk 00:29:04]} {[%emt
00:03:40]} Bg7 {[%clk 00:31:55]} {[%emt 00:00:39]} 42. Kc2 {[%clk 00:26:04]}
{[%emt 00:03:30]} Kg6 {[%clk 00:31:36]} {[%emt 00:00:48]} 43. Rh1 {[%clk
00:26:16]} {[%emt 00:00:18]} Be5 {[%clk 00:26:48]} {[%emt 00:05:19]} 44. Ra1
{[%clk 00:25:41]} {[%emt 00:01:05]} Kf5 {[%clk 00:26:28]} {[%emt 00:00:50]} 45.
Ra5 {[%clk 00:25:39]} {[%emt 00:00:31]} Ke4 {[%clk 00:26:52]} {[%emt 00:00:07]}
46. Rxb5 {[%clk 00:26:01]} {[%emt 00:00:07]} Bd6 {[%clk 00:27:15]} {[%emt
00:00:07]} 47. Kd1 {[%clk 00:19:08]} {[%emt 00:07:23]} Bf8 {[%clk 00:26:21]}
{[%emt 00:01:25]} 48. Ke2 {[%clk 00:19:18]} {[%emt 00:00:19]} Be7 {[%clk
00:25:50]} {[%emt 00:01:01]} 49. Rb7 {[%clk 00:15:06]} {[%emt 00:04:42]} Bd6
{[%clk 00:19:35]} {[%emt 00:06:46]} 50. Rb6 {[%clk 00:13:33]} {[%emt 00:02:03]}
Kd5 {[%clk 00:19:45]} {[%emt 00:00:20]} 51. b4 {[%clk 00:13:04]} {[%emt
00:00:58]} cxb3 {[%clk 00:19:16]} {[%emt 00:01:00]} 52. Kd3 {[%clk 00:13:29]}
{[%emt 00:00:05]} Kc5 {[%clk 00:18:47]} {[%emt 00:00:59]} 53. Rxb3 {[%clk
00:13:53]} {[%emt 00:00:06]} Bg3 {[%clk 00:17:47]} {[%emt 00:01:29]} 54. Ra3
{[%clk 00:12:50]} {[%emt 00:01:33]} Bc7 {[%clk 00:17:52]} {[%emt 00:00:26]} 55.
Ra7 {[%clk 00:12:37]} {[%emt 00:00:42]} Bb6 {[%clk 00:16:51]} {[%emt 00:01:31]}
56. Ra8 {[%clk 00:10:14]} {[%emt 00:02:53]} Kd5 {[%clk 00:16:40]} {[%emt
00:00:41]} 57. Rb8 {[%clk 00:08:04]} {[%emt 00:02:40]} Bc7 {[%clk 00:15:44]}
{[%emt 00:01:27]} 58. Rb5+ {[%clk 00:08:04]} {[%emt 00:00:29]} Kc6 {[%clk
00:16:04]} {[%emt 00:00:11]} 59. Rh5 {[%clk 00:08:14]} {[%emt 00:00:19]} Bb6
{[%clk 00:14:18]} {[%emt 00:02:17]} 60. Kc4 {[%clk 00:08:19]} {[%emt 00:00:24]}
Bf2 {[%clk 00:14:31]} {[%emt 00:00:18]} 61. Rh6 {[%clk 00:08:08]} {[%emt
00:00:40]} Kd6 {[%clk 00:14:55]} {[%emt 00:00:07]} 62. Kb5 {[%clk 00:08:28]}
{[%emt 00:00:09]} Be3 {[%clk 00:13:20]} {[%emt 00:02:06]} 63. Rh3 {[%clk
00:07:11]} {[%emt 00:01:46]} Bf2 {[%clk 00:12:55]} {[%emt 00:00:55]} 64. c4
{[%clk 00:07:06]} {[%emt 00:00:35]} e5 {[%clk 00:11:03]} {[%emt 00:02:23]} 65.
Rh6+ {[%clk 00:07:31]} {[%emt 00:00:04]} Kc7 {[%clk 00:10:49]} {[%emt
00:00:45]} 66. Re6 {[%clk 00:06:34]} {[%emt 00:01:25]} Bg3 {[%clk 00:10:36]}
{[%emt 00:00:44]} 67. Kc5 {[%clk 00:06:20]} {[%emt 00:00:44]} Bf4 {[%clk
00:09:01]} {[%emt 00:02:05]} 68. Kd5 {[%clk 00:06:39]} {[%emt 00:00:11]} Bg3
{[%clk 00:09:00]} {[%emt 00:00:31]} 69. Re7+ {[%clk 00:06:19]} {[%emt
00:00:50]} Kc8 {[%clk 00:08:29]} {[%emt 00:01:02]} 70. Kd6 {[%clk 00:05:22]}
{[%emt 00:01:26]} Bf4 {[%clk 00:08:29]} {[%emt 00:00:30]} 71. Re8+ {[%clk
00:05:45]} {[%emt 00:00:07]} Kb7 {[%clk 00:08:55]} {[%emt 00:00:05]} 72. c5
{[%clk 00:05:44]} {[%emt 00:00:30]} e4+ {[%clk 00:08:58]} {[%emt 00:00:28]} 73.
Kd7 {[%clk 00:06:08]} {[%emt 00:00:05]} e3 {[%clk 00:09:26]} {[%emt 00:00:03]}
74. Re4 {[%clk 00:06:00]} {[%emt 00:00:38]} 1-0

[Event "Deloitte NK 2021"]
[Site "Hoogeveen, Netherlands"]
[Date "2021.10.16"]
[Round "2.3"]
[White "Timmermans, Mark"]
[Black "Ten Hertog, Hugo"]
[Result "0-1"]
[TimeControl "90min/40moves + 30min + 30sec/move"]
[WhiteElo "2385"]
[BlackElo "2519"]

1. e4 {[%clk 01:30:58]} c6 {[%clk 01:30:57]} {[%emt 00:00:04]} 2. d4 {[%clk
01:30:51]} {[%emt 00:00:37]} d5 {[%clk 01:31:23]} {[%emt 00:00:04]} 3. e5
{[%clk 01:28:31]} {[%emt 00:02:50]} Bf5 {[%clk 01:31:46]} {[%emt 00:00:07]} 4.
h4 {[%clk 01:28:58]} {[%emt 00:00:03]} h5 {[%clk 01:32:05]} {[%emt 00:00:11]} 5.
c4 {[%clk 01:28:55]} {[%emt 00:00:33]} e6 {[%clk 01:32:31]} {[%emt 00:00:04]} 6.
Nc3 {[%clk 01:29:22]} {[%emt 00:00:04]} Ne7 {[%clk 01:31:40]} {[%emt 00:01:21]}
7. cxd5 {[%clk 01:21:34]} {[%emt 00:08:17]} Nxd5 {[%clk 01:31:01]} {[%emt
00:01:08]} 8. Nge2 {[%clk 01:21:44]} {[%emt 00:00:20]} Nb4 {[%clk 01:28:07]}
{[%emt 00:03:25]} 9. Bg5 {[%clk 01:06:26]} {[%emt 00:15:47]} Qb6 {[%clk
01:25:45]} {[%emt 00:02:53]} 10. Na4 {[%clk 00:48:02]} {[%emt 00:18:54]} Qa5
{[%clk 01:24:43]} {[%emt 00:01:32]} 11. Nec3 {[%clk 00:47:37]} {[%emt
00:00:56]} Bc2 {[%clk 01:17:23]} {[%emt 00:07:49]} 12. Qd2 {[%clk 00:46:55]}
{[%emt 00:01:11]} Bxa4 {[%clk 01:17:48]} {[%emt 00:00:06]} 13. Rc1 {[%clk
00:44:54]} {[%emt 00:02:31]} Nd5 {[%clk 01:16:07]} {[%emt 00:02:09]} 14. b3
{[%clk 00:22:41]} {[%emt 00:22:45]} Bb4 {[%clk 01:14:06]} {[%emt 00:02:32]} 15.
Rh3 {[%clk 00:23:06]} {[%emt 00:00:04]} Bxc3 {[%clk 01:07:01]} {[%emt
00:07:35]} 16. Rhxc3 {[%clk 00:22:16]} {[%emt 00:01:20]} Bb5 {[%clk 01:07:24]}
{[%emt 00:00:06]} 17. Bc4 {[%clk 00:10:00]} {[%emt 00:12:47]} Bxc4 {[%clk
01:06:45]} {[%emt 00:01:09]} 18. bxc4 {[%clk 00:10:26]} {[%emt 00:00:05]} Nxc3
{[%clk 01:07:10]} {[%emt 00:00:04]} 19. Rxc3 {[%clk 00:10:51]} {[%emt
00:00:06]} Nd7 {[%clk 01:07:09]} {[%emt 00:00:31]} 20. Qb2 {[%clk 00:10:14]}
{[%emt 00:01:06]} Nb6 {[%clk 01:05:57]} {[%emt 00:01:42]} 21. Bd2 {[%clk
00:10:30]} {[%emt 00:00:14]} Qa6 {[%clk 01:04:30]} {[%emt 00:01:57]} 22. Ra3
{[%clk 00:08:16]} {[%emt 00:02:44]} Nxc4 {[%clk 01:04:01]} {[%emt 00:00:59]}
0-1

[Event "Deloitte NK 2021"]
[Site "Hoogeveen, Netherlands"]
[Date "2021.10.16"]
[Round "2.4"]
[White "Burg, Twan"]
[Black "Van der Lende, Ilias"]
[Result "1/2-1/2"]
[TimeControl "90min/40moves + 30min + 30sec/move"]
[WhiteElo "2514"]
[BlackElo "2388"]

1. e4 {[%clk 01:30:59]} e6 {[%clk 01:28:04]} {[%emt 00:02:55]} 2. d4 {[%clk
01:31:26]} {[%emt 00:00:04]} d5 {[%clk 01:28:30]} {[%emt 00:00:04]} 3. Nd2
{[%clk 01:31:52]} {[%emt 00:00:04]} c5 {[%clk 01:27:03]} {[%emt 00:01:57]} 4.
exd5 {[%clk 01:32:09]} {[%emt 00:00:13]} Qxd5 {[%clk 01:24:54]} {[%emt
00:02:38]} 5. Ngf3 {[%clk 01:32:29]} {[%emt 00:00:11]} cxd4 {[%clk 01:25:18]}
{[%emt 00:00:06]} 6. Bc4 {[%clk 01:32:55]} {[%emt 00:00:04]} Qd8 {[%clk
01:25:15]} {[%emt 00:00:33]} 7. O-O {[%clk 01:32:14]} {[%emt 00:01:11]} a6
{[%clk 01:24:36]} {[%emt 00:01:09]} 8. Nb3 {[%clk 01:31:45]} {[%emt 00:00:59]}
Nf6 {[%clk 01:20:39]} {[%emt 00:04:27]} 9. Nbxd4 {[%clk 01:31:24]} {[%emt
00:00:51]} Be7 {[%clk 01:20:48]} {[%emt 00:00:21]} 10. Qe2 {[%clk 01:29:50]}
{[%emt 00:02:04]} O-O {[%clk 01:20:12]} {[%emt 00:01:05]} 11. Re1 {[%clk
01:29:22]} {[%emt 00:01:00]} Nd5 {[%clk 01:11:05]} {[%emt 00:09:36]} 12. Qe4
{[%clk 01:24:24]} {[%emt 00:05:27]} Bf6 {[%clk 01:06:03]} {[%emt 00:05:32]} 13.
h4 {[%clk 01:23:11]} {[%emt 00:01:43]} g6 {[%clk 00:53:48]} {[%emt 00:12:44]}
14. Bg5 {[%clk 01:21:57]} {[%emt 00:01:45]} Nc6 {[%clk 00:48:58]} {[%emt
00:05:21]} 15. Rad1 {[%clk 01:17:54]} {[%emt 00:04:32]} Nxd4 {[%clk 00:41:22]}
{[%emt 00:08:06]} 16. Rxd4 {[%clk 01:17:15]} {[%emt 00:01:09]} Qc7 {[%clk
00:38:30]} {[%emt 00:03:22]} 17. Bxf6 {[%clk 01:08:58]} {[%emt 00:08:47]} Nxf6
{[%clk 00:38:53]} {[%emt 00:00:07]} 18. Qe3 {[%clk 01:08:28]} {[%emt 00:01:00]}
b5 {[%clk 00:36:29]} {[%emt 00:02:55]} 19. Bb3 {[%clk 01:02:04]} {[%emt
00:06:52]} Bb7 {[%clk 00:35:50]} {[%emt 00:01:11]} 20. Qg5 {[%clk 00:59:16]}
{[%emt 00:03:17]} Kg7 {[%clk 00:33:41]} {[%emt 00:02:39]} 21. Ne5 {[%clk
00:58:41]} {[%emt 00:01:05]} Rad8 {[%clk 00:28:31]} {[%emt 00:05:40]} 22. Red1
{[%clk 00:49:59]} {[%emt 00:09:12]} Ne4 {[%clk 00:21:47]} {[%emt 00:07:14]} 23.
Qf4 {[%clk 00:49:31]} {[%emt 00:00:58]} Rxd4 {[%clk 00:21:54]} {[%emt
00:00:23]} 24. Rxd4 {[%clk 00:48:27]} {[%emt 00:01:33]} Nc5 {[%clk 00:20:10]}
{[%emt 00:02:15]} 25. h5 {[%clk 00:45:37]} {[%emt 00:03:20]} Qe7 {[%clk
00:14:55]} {[%emt 00:05:45]} 26. Ng4 {[%clk 00:40:10]} {[%emt 00:05:57]} g5
{[%clk 00:14:17]} {[%emt 00:01:08]} 27. h6+ {[%clk 00:35:45]} {[%emt 00:04:56]}
Kg6 {[%clk 00:14:42]} {[%emt 00:00:04]} 28. Qd2 {[%clk 00:29:27]} {[%emt
00:06:48]} f5 {[%clk 00:12:08]} {[%emt 00:03:04]} 29. Ne5+ {[%clk 00:29:51]}
{[%emt 00:00:05]} Kxh6 {[%clk 00:12:23]} {[%emt 00:00:15]} 30. c3 {[%clk
00:29:33]} {[%emt 00:00:49]} Qf6 {[%clk 00:08:42]} {[%emt 00:04:10]} 31. Qe3
{[%clk 00:26:29]} {[%emt 00:03:35]} Be4 {[%clk 00:08:33]} {[%emt 00:00:39]} 32.
Nd7 {[%clk 00:23:50]} {[%emt 00:03:10]} Nxd7 {[%clk 00:08:44]} {[%emt
00:00:18]} 33. Rxd7 {[%clk 00:24:17]} {[%emt 00:00:02]} Kg6 {[%clk 00:03:48]}
{[%emt 00:05:27]} 34. Rd6 {[%clk 00:22:35]} {[%emt 00:02:12]} Re8 {[%clk
00:04:13]} {[%emt 00:00:05]} 35. Rxa6 {[%clk 00:22:29]} {[%emt 00:00:35]} Qd8
{[%emt 00:02:16]} 36. Bxe6 {[%clk 00:16:51]} {[%emt 00:06:03]} Qd1+ {[%clk
00:01:23]} {[%emt 00:01:41]} 37. Kh2 {[%clk 00:17:19]} {[%emt 00:00:01]} Qh5+
{[%clk 00:01:47]} {[%emt 00:00:06]} 38. Qh3 {[%clk 00:17:42]} {[%emt 00:00:07]}
Qxh3+ {[%clk 00:02:10]} {[%emt 00:00:08]} 39. Kxh3 {[%clk 00:18:05]} {[%emt
00:00:06]} Kg7 {[%clk 00:01:52]} {[%emt 00:00:47]} 40. Rd6 {[%clk 00:12:03]}
{[%emt 00:06:33]} f4 {[%clk 00:00:42]} {[%emt 00:01:40]} 41. Kg4 {[%clk
00:10:32]} {[%emt 00:02:00]} h6 {[%clk 00:28:35]} {[%emt 00:02:38]} 42. f3
{[%clk 00:34:14]} {[%emt 00:06:48]} Bg6 {[%clk 00:28:09]} {[%emt 00:00:56]} 43.
g3 {[%clk 00:31:17]} {[%emt 00:03:27]} h5+ {[%clk 00:25:31]} {[%emt 00:03:08]}
44. Kxg5 {[%clk 00:30:35]} {[%emt 00:01:12]} fxg3 {[%clk 00:24:22]} {[%emt
00:01:39]} 45. Bh3 {[%clk 00:26:11]} {[%emt 00:04:53]} Re5+ {[%clk 00:22:23]}
{[%emt 00:02:30]} 46. Kf4 {[%clk 00:24:03]} {[%emt 00:02:38]} Re2 {[%clk
00:22:45]} {[%emt 00:00:07]} 47. Kxg3 {[%clk 00:23:13]} {[%emt 00:01:20]} Rxb2
{[%clk 00:23:09]} {[%emt 00:00:07]} 48. Rb6 {[%clk 00:22:52]} {[%emt 00:00:50]}
Rc2 {[%clk 00:20:03]} {[%emt 00:03:37]} 49. Rxb5 {[%clk 00:20:42]} {[%emt
00:02:40]} Rxc3 {[%clk 00:20:28]} {[%emt 00:00:05]} 50. a4 {[%clk 00:17:59]}
{[%emt 00:03:13]} Be8 {[%clk 00:16:32]} {[%emt 00:04:26]} 51. Rb7+ {[%clk
00:17:12]} {[%emt 00:01:17]} Kf6 {[%clk 00:16:15]} {[%emt 00:00:46]} 52. Rb6+
{[%clk 00:17:36]} {[%emt 00:00:07]} Kg5 {[%clk 00:15:17]} {[%emt 00:01:28]} 53.
a5 {[%clk 00:17:48]} {[%emt 00:00:18]} Bc6 {[%clk 00:14:03]} {[%emt 00:01:44]}
54. Bg2 {[%clk 00:18:11]} {[%emt 00:00:07]} h4+ {[%clk 00:13:51]} {[%emt
00:00:41]} 55. Kf2 {[%clk 00:18:36]} {[%emt 00:00:05]} Rc2+ {[%clk 00:09:31]}
{[%emt 00:04:50]} 56. Kg1 {[%clk 00:17:39]} {[%emt 00:01:28]} Kf4 {[%clk
00:06:55]} {[%emt 00:03:06]} 57. Kh2 {[%clk 00:13:59]} {[%emt 00:04:10]} Bd7
{[%clk 00:05:41]} {[%emt 00:01:43]} 58. Rb4+ {[%clk 00:13:17]} {[%emt
00:01:12]} Kg5 {[%clk 00:06:06]} {[%emt 00:00:05]} 59. Kg1 {[%clk 00:11:20]}
{[%emt 00:02:28]} Ra2 {[%clk 00:06:12]} {[%emt 00:00:24]} 60. Rb7 {[%clk
00:10:48]} {[%emt 00:01:01]} h3 {[%clk 00:04:39]} {[%emt 00:02:03]} 61. Bf1
{[%clk 00:08:54]} {[%emt 00:02:25]} h2+ {[%clk 00:04:09]} {[%emt 00:01:01]} 62.
Kh1 {[%clk 00:09:19]} {[%emt 00:00:04]} Bc6 {[%clk 00:04:30]} {[%emt 00:00:09]}
63. Rg7+ {[%clk 00:09:02]} {[%emt 00:00:47]} Kf6 {[%clk 00:04:16]} {[%emt
00:00:44]} 64. Rf7+ {[%clk 00:08:19]} {[%emt 00:01:13]} Kxf7 {[%clk 00:04:06]}
{[%emt 00:00:40]} 65. Bc4+ {[%clk 00:08:44]} {[%emt 00:00:04]} Ke7 {[%clk
00:04:31]} {[%emt 00:00:05]} 66. Bxa2 {[%clk 00:09:10]} {[%emt 00:00:04]} Bxf3+
{[%clk 00:04:58]} {[%emt 00:00:03]} 67. Kxh2 {[%clk 00:09:37]} {[%emt
00:00:03]} Kd6 {[%clk 00:05:17]} {[%emt 00:00:12]} 68. a6 {[%clk 00:09:56]}
{[%emt 00:00:11]} Kc7 {[%clk 00:05:33]} {[%emt 00:00:14]} 69. Kg3 {[%clk
00:10:18]} {[%emt 00:00:08]} Kb6 {[%clk 00:05:58]} {[%emt 00:00:05]} 70. Bc4
{[%clk 00:10:42]} {[%emt 00:00:05]} Bb7 {[%clk 00:06:23]} {[%emt 00:00:05]} 71.
axb7 {[%clk 00:11:00]} {[%emt 00:00:12]} Kxb7 {[%clk 00:06:49]} {[%emt
00:00:03]} 1/2-1/2